bitfinex/quotes_BTCUSD_20250620
["timestamp","ask_amount","ask_price","bid_price","bid_amount"]
[1750435385798,5.32197942,104320.0,104310.0,0.23389361]
[1750435386007,5.95001252,104320.0,104310.0,0.24348014]
[1750435386650,5.95001252,104320.0,104310.0,0.25306639]
[1750435386860,5.95001252,104320.0,104310.0,0.26265292]
[1750435387081,0.79553488,104320.0,104310.0,0.30585908]
[1750435387376,0.80512012,104320.0,104310.0,0.33825908]
[1750435387827,0.82429125,104320.0,104310.0,0.33825908]
[1750435388053,1.01600904,104320.0,104310.0,0.28910699]
[1750435388271,6.42075398,104320.0,104310.0,0.22430699]
[1750435388498,6.41116828,104320.0,104310.0,0.19329082]
[1750435388943,6.41116828,104320.0,104310.0,0.38502699]
[1750435389151,6.41116828,104320.0,104310.0,0.19329082]
[1750435389569,6.44146828,104320.0,104310.0,0.19329082]
[1750435391115,6.47186828,104320.0,104310.0,0.03257082]
[1750435391407,6.47186828,104320.0,104310.0,0.19329082]
[1750435392086,6.47186828,104320.0,104310.0,0.03257082]
[1750435392811,5.33830609,104300.0,104290.0,0.0001]
[1750435393040,6.02738975,104300.0,104290.0,0.00014705]
[1750435394128,6.09424266,104300.0,104290.0,0.212097]
[1750435394559,6.09424266,104300.0,104290.0,0.19291999]
[1750435394769,6.08465521,104300.0,104290.0,0.00114705]
[1750435395878,6.08465521,104300.0,104290.0,0.20250863]
[1750435396094,6.08465521,104300.0,104290.0,0.21209718]
[1750435396344,6.08465521,104300.0,104290.0,0.00114705]
[1750435396557,5.85429967,104300.0,104290.0,0.00114705]
[1750435399642,6.02862716,104290.0,104280.0,0.19185134]
[1750435399854,6.21917594,104290.0,104280.0,0.19185134]
[1750435400071,6.22876431,104290.0,104280.0,0.21103]
[1750435400290,5.37049088,104290.0,104280.0,0.28735892]
[1750435400726,0.81471078,104290.0,104280.0,0.28735892]
[1750435401367,0.82429905,104290.0,104280.0,0.28735892]
[1750435402232,0.81571078,104290.0,104280.0,0.29035892]
[1750435402765,1.29653488,104290.0,104280.0,0.28835892]
[1750435402991,0.81016703,104290.0,104280.0,0.28835892]
[1750435405433,0.81975484,104290.0,104280.0,0.28835892]
[1750435405647,0.81016703,104290.0,104280.0,0.28835892]
[1750435406691,0.81016703,104290.0,104280.0,0.44907892]
[1750435407733,0.35463215,104290.0,104280.0,0.44907892]
[1750435407938,0.81016703,104290.0,104280.0,0.44907892]
[1750435408141,0.81016703,104290.0,104280.0,0.52309158]
[1750435408362,0.81016703,104290.0,104280.0,0.44907892]
[1750435408983,0.81975503,104290.0,104280.0,0.44793892]
[1750435409192,0.81975503,104290.0,104280.0,0.44907892]
[1750435409399,0.81016703,104290.0,104280.0,0.44907892]
[1750435409604,0.81975484,104290.0,104280.0,0.44907892]
[1750435410430,0.83893093,104290.0,104280.0,0.44907892]
[1750435410634,0.82934275,104290.0,104280.0,0.44907892]
[1750435410849,0.83893093,104290.0,104280.0,0.44907892]
[1750435411072,1.02011569,104290.0,104280.0,0.26704081]
[1750435411277,1.59233743,104290.0,104280.0,0.38333929]
[1750435411484,1.58274952,104290.0,104280.0,0.38333929]
[1750435411687,0.9354417,104290.0,104280.0,0.38333929]
[1750435411896,1.13680328,104290.0,104280.0,0.39292821]
[1750435412110,1.04153343,104290.0,104280.0,0.38533929]
[1750435412310,1.03194543,104290.0,104280.0,0.38533929]
[1750435412937,1.02235716,104290.0,104280.0,0.38533929]
[1750435413142,1.55275378,104290.0,104280.0,0.3661609]
[1750435413345,1.64926363,104290.0,104280.0,0.37575037]
[1750435413771,1.67807463,104290.0,104280.0,0.37575037]
[1750435413979,1.67807463,104290.0,104280.0,0.3661609]
[1750435414606,6.28343063,104290.0,104280.0,0.01364957]
[1750435414862,6.28343063,104290.0,104280.0,0.17436957]
[1750435415128,6.33644158,104290.0,104280.0,0.00406001]
[1750435415826,6.33644158,104290.0,104280.0,0.00206001]
[1750435417123,6.33544158,104290.0,104280.0,6.001e-05]
[1750435418024,6.33844158,104290.0,104280.0,0.00106001]
[1750435418239,6.33944158,104290.0,104280.0,0.00106001]
[1750435420789,6.27894158,104290.0,104280.0,0.00106001]
[1750435421659,6.30924158,104290.0,104280.0,0.00106001]
[1750435422770,6.27894158,104290.0,104280.0,0.00106001]
[1750435423202,6.34094158,104290.0,104280.0,0.00106001]
[1750435424764,6.50162158,104290.0,104280.0,0.00106001]
[1750435424992,6.5302759,104290.0,104280.0,0.00106001]
[1750435425776,6.54481675,104290.0,104280.0,0.00106001]
[1750435427153,6.09041647,104280.0,104270.0,0.00010001]
[1750435427386,6.3468762,104280.0,104270.0,0.00010001]
[1750435428041,6.14549549,104280.0,104270.0,0.00010001]
[1750435428259,6.33728682,104280.0,104270.0,0.00010001]
[1750435428721,6.33828682,104280.0,104270.0,0.00110001]
[1750435428930,6.52309705,104280.0,104270.0,0.00110001]
[1750435429591,6.52308394,104280.0,104270.0,0.00110001]
[1750435429804,6.52308394,104280.0,104270.0,0.00010001]
[1750435430244,6.52708394,104280.0,104270.0,0.00110001]
[1750435430706,6.35426324,104280.0,104270.0,0.00110001]
[1750435430933,6.35547324,104280.0,104270.0,0.00110001]
[1750435431178,6.19350324,104280.0,104270.0,0.00110001]
[1750435431407,6.19350324,104280.0,104270.0,0.03120001]
[1750435431628,6.19471324,104280.0,104270.0,0.00110001]
[1750435431849,6.28998309,104280.0,104270.0,0.00110001]
[1750435432288,6.26708525,104280.0,104270.0,0.00110001]
[1750435432530,0.91499155,104280.0,104270.0,0.27669023]
[1750435432762,0.005,104280.0,104270.0,0.44810007]
[1750435433001,0.005,104280.0,104270.0,0.543379]
[1750435433252,0.00251,104280.0,104270.0,1.09353308]
[1750435433443,9.023e-05,104300.0,104290.0,0.22053776]
[1750435433747,9.023e-05,104300.0,104290.0,0.50769669]
[1750435433962,0.34009023,104300.0,104290.0,0.50769669]
[1750435434429,9.023e-05,104300.0,104290.0,0.50769669]
[1750435434918,0.00209023,104300.0,104290.0,0.50869669]
[1750435435139,0.34209023,104300.0,104290.0,0.52101125]
[1750435435640,0.34209023,104300.0,104290.0,0.52201125]
[1750435435870,0.00209023,104300.0,104290.0,0.52201125]
[1750435436103,9.023e-05,104300.0,104290.0,0.52001125]
[1750435436318,9.023e-05,104300.0,104290.0,0.55281125]
[1750435436534,9.023e-05,104300.0,104290.0,0.56481125]
[1750435437253,9.023e-05,104300.0,104290.0,0.60773125]
[1750435439748,9.023e-05,104300.0,104290.0,1.07780698]
[1750435440178,9.023e-05,104300.0,104290.0,1.10660198]
[1750435440399,9.023e-05,104300.0,104290.0,0.43292625]
[1750435440621,0.45562511,104300.0,104290.0,0.55241669]
[1750435441360,0.79562511,104300.0,104290.0,0.39181669]
[1750435441582,0.79562511,104300.0,104290.0,0.45713776]
[1750435447680,0.79562511,104300.0,104290.0,0.45713776]
[1750435448312,0.34009023,104300.0,104290.0,0.45713776]
[1750435448526,0.34009023,104300.0,104290.0,0.5239468]
[1750435448527,0.79562511,104300.0,104290.0,0.5239468]
[1750435450095,0.79682511,104300.0,104290.0,0.29653776]
[1750435450313,0.80641201,104300.0,104290.0,0.29653776]
[1750435450553,0.35087713,104300.0,104290.0,0.29653776]
[1750435450760,0.80641201,104300.0,104290.0,0.29653776]
[1750435450980,0.79682511,104300.0,104290.0,0.29653776]
[1750435451202,0.79682511,104300.0,104290.0,0.5078468]
[1750435451858,0.79682511,104300.0,104290.0,0.45709776]
[1750435453422,0.79682511,104300.0,104290.0,0.29653776]
[1750435453637,0.80641201,104300.0,104290.0,0.45709776]
[1750435453879,0.79682511,104300.0,104290.0,0.45709776]
[1750435454971,0.80641219,104300.0,104290.0,0.39309776]
[1750435455207,0.79682511,104300.0,104290.0,0.39309776]
[1750435455425,0.8064121,104300.0,104290.0,0.39309776]
[1750435455854,0.79682511,104300.0,104290.0,0.39309776]
[1750435456082,0.8255869,104300.0,104290.0,0.39309776]
[1750435456310,1.1543081,104300.0,104290.0,0.38350976]
[1750435456580,1.17702111,104300.0,104290.0,0.39305832]
[1750435456800,1.30109896,104300.0,104290.0,0.39305832]
[1750435457021,1.30109896,104300.0,104290.0,0.38346995]
[1750435457251,1.28192416,104300.0,104290.0,0.35233294]
[1750435457469,1.28192416,104300.0,104290.0,0.36192149]
[1750435457690,1.28492416,104300.0,104290.0,0.35333294]
[1750435457914,1.28492416,104300.0,104290.0,0.36292158]
[1750435458132,1.28492416,104300.0,104290.0,0.37151013]
[1750435458564,1.28492416,104300.0,104290.0,0.36192158]
[1750435458781,1.28192416,104300.0,104290.0,0.37151013]
[1750435459204,1.29292416,104300.0,104290.0,0.21095013]
[1750435459417,1.29292416,104300.0,104280.0,0.37147261]
[1750435459641,0.46512315,104290.0,104280.0,0.37147261]
[1750435459854,0.46632315,104290.0,104280.0,0.37147261]
[1750435460060,0.57118118,104290.0,104280.0,0.37147261]
[1750435460498,0.58076918,104290.0,104280.0,0.37147261]
[1750435460716,0.59035764,104290.0,104280.0,0.37147261]
[1750435460939,0.59035709,104290.0,104280.0,0.37147261]
[1750435461361,0.59994555,104290.0,104280.0,0.37147261]
[1750435461570,1.23766546,104290.0,104280.0,0.20236406]
[1750435461779,1.22807783,104290.0,104280.0,0.37247335]
[1750435461988,1.25957783,104290.0,104280.0,0.37247335]
[1750435462210,1.37836849,104290.0,104280.0,0.36290089]
[1750435462421,1.36878003,104290.0,104280.0,0.17110956]
[1750435462632,6.33061603,104290.0,104280.0,0.001]
[1750435463511,4.77633689,104280.0,104270.0,0.23117045]
[1750435463718,5.68860665,104280.0,104270.0,0.23117045]
[1750435464179,5.68860665,104280.0,104270.0,0.22158052]
[1750435464382,5.68860665,104280.0,104270.0,0.22058052]
[1750435464847,5.77156194,104280.0,104270.0,0.22058052]
[1750435465057,5.68860665,104280.0,104270.0,0.2109905]
[1750435465280,0.01918005,104270.0,104260.0,0.20151807]
[1750435465496,0.99813481,104270.0,104260.0,0.35244812]
[1750435465723,1.08382353,104270.0,104260.0,0.20151952]
[1750435465940,1.20999338,104270.0,104260.0,0.19192812]
[1750435466170,1.20999338,104270.0,104260.0,0.20151952]
[1750435466389,1.20999338,104270.0,104260.0,0.0001]
[1750435467066,1.21699338,104270.0,104260.0,0.0011]
[1750435467278,1.24859338,104270.0,104260.0,0.0011]
[1750435467498,6.27908426,104270.0,104260.0,0.0011]
[1750435467733,6.27908426,104270.0,104260.0,0.0001]
[1750435467947,0.55105113,104240.0,104230.0,0.01932777]
[1750435468180,0.55105113,104240.0,104230.0,0.39091278]
[1750435468181,0.81592035,104240.0,104230.0,0.39091278]
[1750435468399,0.82551332,104240.0,104230.0,0.42311278]
[1750435468609,0.81592017,104240.0,104230.0,0.45421278]
[1750435469274,0.80632748,104240.0,104230.0,0.45421278]
[1750435469493,0.81592026,104240.0,104230.0,0.45435416]
[1750435469717,0.80632748,104240.0,104230.0,0.45435416]
[1750435469973,0.341,104240.0,104230.0,0.45771133]
[1750435470223,0.341,104240.0,104230.0,0.61823133]
[1750435470699,0.341,104240.0,104230.0,0.61923133]
[1750435471879,0.79653488,104240.0,104230.0,0.61923133]
[1750435472532,0.79773488,104240.0,104230.0,0.55363309]
[1750435472784,0.81026584,104240.0,104230.0,0.55363309]
[1750435473034,0.81026584,104240.0,104230.0,0.45835416]
[1750435473507,0.81985835,104240.0,104230.0,0.45835416]
[1750435473758,0.81026584,104240.0,104230.0,0.45835416]
[1750435474268,0.80906584,104240.0,104230.0,0.29783416]
[1750435474505,0.80906584,104240.0,104230.0,0.45835416]
[1750435474940,0.79653488,104240.0,104230.0,0.5243524]
[1750435475145,0.80930111,104240.0,104230.0,0.5243524]
[1750435475355,0.79653488,104240.0,104230.0,0.45835416]
[1750435476816,0.79773488,104240.0,104230.0,0.45835416]
[1750435478461,0.79653488,104240.0,104230.0,0.45835416]
[1750435479169,0.341,104240.0,104230.0,0.45835416]
[1750435479391,0.8091737,104240.0,104230.0,0.5243524]
[1750435480312,0.8091737,104240.0,104230.0,0.45435416]
[1750435480313,0.8081737,104240.0,104230.0,0.45435416]
[1750435480541,0.8091737,104240.0,104230.0,0.46235416]
[1750435480999,0.8091737,104240.0,104230.0,0.46835416]
[1750435484298,0.35363882,104240.0,104230.0,0.46835416]
[1750435484531,0.001,104240.0,104230.0,0.56363309]
[1750435484766,0.001,104240.0,104230.0,0.65890294]
[1750435485469,0.001,104240.0,104230.0,1.11443782]
[1750435486901,0.001,104240.0,104230.0,1.12897867]
[1750435488132,0.001,104240.0,104230.0,1.20897867]
[1750435488609,0.001,104240.0,104230.0,0.75344379]
[1750435490110,0.4682318,104260.0,104250.0,0.0645]
[1750435490336,0.4682318,104260.0,104250.0,0.52442001]
[1750435490553,0.4682318,104260.0,104250.0,0.55319587]
[1750435491632,0.4702318,104260.0,104250.0,0.55319587]
[1750435492079,0.8102318,104260.0,104250.0,0.55319587]
[1750435492934,0.342,104260.0,104250.0,0.55319587]
[1750435493148,0.002,104260.0,104250.0,0.55319587]
[1750435494244,0.35251688,104270.0,104260.0,0.22060122]
[1750435494462,0.80805176,104270.0,104260.0,0.29702167]
[1750435495355,0.80805176,104270.0,104260.0,0.21101046]
[1750435495575,0.90811185,104270.0,104260.0,0.38108122]
[1750435495813,0.91111185,104270.0,104260.0,0.38108122]
[1750435496276,0.88357141,104270.0,104260.0,0.38108122]
[1750435496497,0.63097432,104270.0,104260.0,0.38108122]
[1750435496712,0.47894428,104270.0,104260.0,0.44029232]
[1750435496930,0.48553421,104270.0,104260.0,0.44029232]
[1750435497383,0.50753778,104270.0,104260.0,0.44029232]
[1750435497594,0.49794767,104270.0,104260.0,0.44029232]
[1750435497813,0.50753788,104270.0,104260.0,0.44029232]
[1750435498025,0.50753778,104270.0,104260.0,0.44029232]
[1750435498225,0.51712808,104270.0,104260.0,0.44029232]
[1750435498449,0.70893854,104270.0,104260.0,0.38108122]
[1750435498689,1.08093927,104270.0,104260.0,0.38108122]
[1750435499322,0.88912955,104270.0,104260.0,0.37908122]
[1750435499539,0.88912955,104270.0,104250.0,0.20143875]
[1750435499540,0.56183067,104260.0,104250.0,0.20143875]
[1750435499766,1.09065677,104260.0,104250.0,0.38106256]
[1750435500225,1.56469776,104260.0,104240.0,0.20145743]
[1750435500436,1.47292113,104250.0,104240.0,0.21105076]
[1750435500641,1.29066647,104250.0,104240.0,0.22064336]
[1750435500841,1.32256647,104250.0,104240.0,0.38108336]
[1750435501061,1.54621428,104250.0,104240.0,0.38108345]
[1750435501297,1.53662297,104250.0,104240.0,0.20145798]
[1750435501545,1.5184386,104250.0,104240.0,0.37189807]
[1750435501787,1.5184386,104250.0,104240.0,0.38149104]
[1750435502013,1.5184386,104250.0,104240.0,0.37189807]
[1750435502701,1.50884628,104250.0,104240.0,0.37189807]
[1750435502925,1.50884628,104250.0,104240.0,0.36230492]
[1750435503356,1.50884628,104250.0,104240.0,0.36830492]
[1750435503575,1.50884628,104250.0,104240.0,0.37789816]
[1750435504019,1.60411613,104250.0,104240.0,0.37789816]
[1750435504233,1.69939506,104250.0,104240.0,0.17644]
[1750435506267,1.61371698,104250.0,104240.0,0.36830492]
[1750435506497,1.59285698,104250.0,104240.0,0.37789798]
[1750435506714,1.62485698,104250.0,104240.0,0.37189798]
[1750435506936,1.62385698,104250.0,104240.0,0.37149085]
[1750435507156,1.62385698,104250.0,104240.0,0.38108363]
[1750435507371,1.38917046,104250.0,104240.0,0.38208363]
[1750435507591,0.82554028,104250.0,104240.0,0.39167623]
[1750435507838,1.28107516,104250.0,104240.0,0.39167623]
[1750435508497,0.83513233,104250.0,104240.0,0.39167623]
[1750435508709,1.48251373,104250.0,104240.0,0.39167623]
[1750435508933,1.30025944,104250.0,104240.0,0.39167623]
[1750435509366,1.28107497,104250.0,104240.0,0.39167623]
[1750435509538,1.29066711,104250.0,104240.0,0.39167623]
[1750435509734,1.29066711,104250.0,104240.0,0.23123623]
[1750435509952,0.34,104250.0,104240.0,0.45347623]
[1750435510220,0.45553488,104260.0,104250.0,0.22062238]
[1750435510452,0.01241346,104270.0,104260.0,0.28240122]
[1750435510686,0.45553488,104270.0,104260.0,0.44284122]
[1750435511131,0.12177946,104290.0,104280.0,0.22055891]
[1750435511350,0.64487567,104290.0,104280.0,0.38099891]
[1750435511579,0.92077827,104290.0,104280.0,0.38099891]
[1750435511783,0.58077827,104290.0,104280.0,0.38099891]
[1750435511985,0.59036673,104290.0,104280.0,0.38099891]
[1750435512193,0.99289296,104290.0,104280.0,0.38099891]
[1750435512837,1.29879243,104290.0,104280.0,0.37140999]
[1750435513037,1.30206457,104290.0,104280.0,0.37140999]
[1750435513481,1.30206457,104290.0,104280.0,0.38099909]
[1750435513684,1.11029163,104290.0,104280.0,0.38099909]
[1750435513898,1.33786494,104290.0,104280.0,0.35223133]
[1750435514109,1.36107657,104290.0,104280.0,0.16044]
[1750435514261,1.36107657,104290.0,104280.0,0.37141036]
[1750435514462,1.36107657,104290.0,104280.0,0.36182089]
[1750435514671,1.35148811,104290.0,104280.0,0.36182089]
[1750435515084,5.92644411,104290.0,104280.0,0.20138089]
[1750435515287,5.92644411,104290.0,104280.0,0.37137027]
[1750435515484,5.93603238,104290.0,104280.0,0.38095946]
[1750435515684,5.93603238,104290.0,104280.0,0.39054875]
[1750435515971,5.93603238,104290.0,104280.0,0.40013776]
[1750435516180,5.75384808,104290.0,104280.0,0.40013785]
[1750435516393,5.74425944,104290.0,104280.0,0.4001373]
[1750435516604,5.94562102,104290.0,104280.0,0.39054829]
[1750435516818,5.68824735,104290.0,104280.0,0.40013721]
[1750435517948,5.88002029,104290.0,104280.0,0.39054829]
[1750435518368,5.68824735,104290.0,104280.0,0.39054829]
[1750435518580,5.68824735,104290.0,104280.0,0.40013721]
[1750435518800,5.67865889,104290.0,104280.0,0.40013721]
[1750435519241,5.62572112,104290.0,104280.0,0.40013721]
[1750435519665,5.81749406,104290.0,104280.0,0.38095919]
[1750435519875,5.81749406,104290.0,104280.0,0.36178071]
[1750435520102,5.80790606,104290.0,104280.0,0.36178089]
[1750435520525,5.79831779,104290.0,104280.0,0.36178089]
[1750435520742,5.84155426,104290.0,104280.0,0.36178089]
[1750435520957,5.84155426,104290.0,104280.0,0.37137036]
[1750435522060,5.84155426,104290.0,104280.0,0.38095974]
[1750435522843,5.84155426,104290.0,104280.0,0.37137036]
[1750435524195,0.53179133,104280.0,104270.0,0.20138352]
[1750435524405,1.11224212,104280.0,104270.0,0.39051432]
[1750435524610,1.11224212,104280.0,104270.0,0.40010425]
[1750435524966,1.13142088,104280.0,104270.0,0.40010361]
[1750435525744,1.14101044,104280.0,104270.0,0.40010361]
[1750435526449,0.01286005,104290.0,104280.0,0.28405891]
[1750435526613,0.028861,104300.0,104290.0,0.22053776]
[1750435526614,5e-05,104300.0,104290.0,0.22053776]
[1750435526763,5e-05,104300.0,104290.0,0.44397776]
[1750435528394,0.00105,104300.0,104290.0,0.45275776]
[1750435528840,0.00105,104300.0,104290.0,0.45397776]
[1750435529518,0.00105,104300.0,104290.0,0.45997776]
[1750435529742,0.00105,104300.0,104290.0,0.49249511]
[1750435530626,0.00105,104300.0,104290.0,0.29843776]
[1750435530852,0.91191141,104300.0,104290.0,0.39685776]
[1750435531084,0.92149831,104300.0,104290.0,0.39685776]
[1750435531306,0.94067293,104300.0,104290.0,0.39685776]
[1750435531773,1.14201502,104300.0,104290.0,0.38726976]
[1750435532011,0.94067284,104300.0,104290.0,0.40644585]
[1750435532237,0.95026038,104300.0,104290.0,0.40644585]
[1750435532455,0.95984801,104300.0,104290.0,0.39685785]
[1750435532686,0.94067284,104300.0,104290.0,0.40644585]
[1750435532913,0.93108548,104300.0,104290.0,0.40644585]
[1750435533175,0.94067284,104300.0,104290.0,0.40644585]
[1750435533374,0.95026038,104300.0,104290.0,0.40644585]
[1750435533583,0.94067284,104300.0,104290.0,0.40644585]
[1750435534263,0.95026038,104300.0,104290.0,0.40644585]
[1750435534426,0.95984801,104300.0,104290.0,0.40644585]
[1750435534600,1.15160256,104300.0,104290.0,0.40644585]
[1750435535449,1.15160338,104300.0,104290.0,0.40644585]
[1750435535656,0.94067348,104300.0,104290.0,0.40644585]
[1750435536251,1.14201575,104300.0,104290.0,0.40644585]
[1750435536519,1.14201575,104300.0,104290.0,0.22694976]
[1750435536755,5.952346,104300.0,104290.0,0.17628]
[1750435537116,5.952346,104300.0,104290.0,0.016]
[1750435538619,0.54136158,104290.0,104280.0,0.38083937]
[1750435538800,1.20743192,104290.0,104280.0,0.38083937]
[1750435539005,1.21702001,104290.0,104280.0,0.37125018]
[1750435539548,1.31228986,104290.0,104280.0,0.37125018]
[1750435539759,1.31228986,104290.0,104280.0,0.38083937]
[1750435540005,1.21702001,104290.0,104280.0,0.38083937]
[1750435540216,1.21702001,104290.0,104280.0,0.38183937]
[1750435540965,1.10305747,104290.0,104280.0,0.38183937]
[1750435541438,1.10305747,104290.0,104280.0,0.36266089]
[1750435541658,1.09346938,104290.0,104280.0,0.36266089]
[1750435541861,6.18922094,104290.0,104280.0,0.001]
[1750435541998,5.76492207,104290.0,104280.0,0.37221036]
[1750435542197,5.70092207,104290.0,104280.0,0.38179974]
[1750435542427,5.70092207,104290.0,104280.0,0.37221036]
[1750435543178,5.70092207,104290.0,104280.0,0.38179974]
[1750435543421,5.70092207,104290.0,104280.0,0.39138893]
[1750435544365,5.70092207,104290.0,104280.0,0.38179974]
[1750435544811,5.70092207,104290.0,104280.0,0.37221036]
[1750435545395,5.70092207,104290.0,104280.0,0.38179974]
[1750435545591,5.96548274,104290.0,104280.0,0.17082956]
[1750435545796,6.15725568,104290.0,104280.0,0.16124]
[1750435545995,6.19904432,104290.0,104280.0,0.001]
[1750435547186,6.2219805,104290.0,104280.0,0.001]
[1750435547364,6.72472135,104290.0,104280.0,0.001]
[1750435547918,1.02702113,104260.0,104250.0,0.28342229]
[1750435548128,1.02702186,104260.0,104250.0,0.26438004]
[1750435548373,1.01743092,104260.0,104250.0,0.36182004]
[1750435548576,1.46353857,104260.0,104250.0,0.3521879]
[1750435548796,1.46353857,104260.0,104250.0,0.37137227]
[1750435549010,1.46353857,104260.0,104250.0,0.36178022]
[1750435549227,1.0078397,104260.0,104250.0,0.36178022]
[1750435549428,1.0078397,104260.0,104250.0,0.37137236]
[1750435549608,1.0078397,104260.0,104250.0,0.37437236]
[1750435549851,5.6150957,104260.0,104250.0,0.36578022]
[1750435550054,5.5827957,104260.0,104250.0,0.21517236]
[1750435550258,5.5827957,104260.0,104250.0,0.38500441]
[1750435550847,5.69708495,104260.0,104250.0,0.37541236]
[1750435551087,5.69708495,104260.0,104250.0,0.38500441]
[1750435551290,5.79236388,104260.0,104250.0,0.16438138]
[1750435551493,5.88763373,104260.0,104250.0,0.16438138]
[1750435551703,5.82175041,104260.0,104250.0,0.00414138]
[1750435551909,5.88465041,104260.0,104250.0,0.00414138]
[1750435552777,5.88465041,104260.0,104250.0,0.00063159]
[1750435552983,6.04489041,104260.0,104250.0,0.00063159]
[1750435553191,0.36877862,104240.0,104230.0,0.42059259]
[1750435553396,1.1413549,104240.0,104230.0,0.41099916]
[1750435553604,1.1413549,104240.0,104230.0,0.40140546]
[1750435553813,0.93989674,104240.0,104230.0,0.44179898]
[1750435554024,1.13176166,104240.0,104230.0,0.44179898]
[1750435554238,1.1413549,104240.0,104230.0,0.44179898]
[1750435554442,1.1413549,104240.0,104230.0,0.43220546]
[1750435554848,1.1413549,104240.0,104230.0,0.44179916]
[1750435555050,0.93989674,104240.0,104230.0,0.45139277]
[1750435555253,0.93989674,104240.0,104230.0,0.46198629]
[1750435555407,1.1413549,104240.0,104230.0,0.46198629]
[1750435555567,1.1413549,104240.0,104230.0,0.46298629]
[1750435556433,1.15328359,104240.0,104230.0,0.46298629]
[1750435556842,1.15328359,104240.0,104230.0,0.45339277]
[1750435557442,0.78450497,104240.0,104230.0,0.45339277]
[1750435558102,0.03224416,104240.0,104230.0,0.52752904]
[1750435558335,0.02152129,104240.0,104230.0,0.52752904]
[1750435558557,0.02152129,104240.0,104230.0,0.52865904]
[1750435558558,0.0215211,104240.0,104230.0,0.52865904]
[1750435558765,0.01918501,104240.0,104230.0,0.52865904]
[1750435558976,0.80133282,104250.0,104240.0,0.27435113]
[1750435559180,0.89661175,104250.0,104240.0,0.27435113]
[1750435559389,1.22702007,104250.0,104240.0,0.27435113]
[1750435559616,1.22702007,104250.0,104240.0,0.29353678]
[1750435559829,1.22702007,104250.0,104240.0,0.283944]
[1750435560041,1.22970248,104250.0,104240.0,0.20145816]
[1750435560275,0.34959278,104240.0,104230.0,0.47936035]
[1750435560512,0.93876711,104240.0,104230.0,0.45319269]
[1750435560932,1.14135463,104240.0,104230.0,0.44359917]
[1750435561130,1.14135463,104240.0,104230.0,0.45319269]
[1750435561339,0.94948971,104240.0,104230.0,0.45319269]
[1750435561548,0.9303035,104240.0,104230.0,0.45319269]
[1750435561765,0.9203035,104240.0,104230.0,0.45419269]
[1750435561975,0.92989647,104240.0,104230.0,0.45519269]
[1750435562220,0.9107109,104240.0,104230.0,0.45519269]
[1750435562430,0.928766,104240.0,104230.0,0.52087486]
[1750435562641,0.91917331,104240.0,104230.0,0.52087486]
[1750435562848,0.92876582,104240.0,104230.0,0.52087486]
[1750435563053,0.01918492,104240.0,104230.0,0.52087486]
[1750435563259,0.57958053,104240.0,104230.0,0.52087486]
[1750435563708,0.90998812,104240.0,104230.0,0.52087486]
[1750435563910,0.34,104240.0,104230.0,0.52087486]
[1750435564128,0.34,104240.0,104230.0,0.52200486]
[1750435564329,0.34,104240.0,104230.0,0.52087486]
[1750435564773,0.34,104240.0,104230.0,0.45519269]
[1750435565640,0.34,104240.0,104230.0,0.45632269]
[1750435565869,0.34,104240.0,104230.0,0.55160162]
[1750435566538,0.34,104240.0,104230.0,0.56514247]
[1750435567849,0.90998812,104270.0,104260.0,0.28440122]
[1750435568064,0.92199422,104270.0,104260.0,0.44460122]
[1750435569389,0.95376401,104270.0,104260.0,0.44460122]
[1750435569654,0.95376391,104270.0,104260.0,0.44460122]
[1750435569879,0.96455421,104270.0,104260.0,0.44460122]
[1750435570125,0.95496391,104270.0,104260.0,0.51027567]
[1750435570743,0.96455421,104270.0,104260.0,0.44460122]
[1750435570949,0.95496391,104270.0,104260.0,0.44460122]
[1750435571160,0.96455421,104270.0,104260.0,0.44460122]
[1750435571368,1.15636467,104270.0,104260.0,0.43501056]
[1750435571590,1.15636467,104270.0,104260.0,0.21101056]
[1750435571813,1.14677474,104270.0,104260.0,0.3807615]
[1750435572027,1.14677474,104270.0,104250.0,0.22060552]
[1750435572028,0.02038198,104260.0,104250.0,0.22060552]
[1750435572236,0.58077888,104260.0,104250.0,0.44486552]
[1750435572445,0.59036982,104260.0,104250.0,0.44486552]
[1750435572649,0.57118812,104260.0,104250.0,0.44486552]
[1750435572850,0.46669714,104260.0,104250.0,0.44486552]
[1750435573059,0.47628808,104260.0,104250.0,0.44486552]
[1750435573272,0.46669714,104260.0,104250.0,0.44486552]
[1750435573482,0.47628817,104260.0,104250.0,0.44586552]
[1750435574034,0.47628808,104260.0,104250.0,0.44586552]
[1750435574247,0.46669714,104260.0,104250.0,0.44586552]
[1750435574454,0.47628808,104260.0,104250.0,0.44686552]
[1750435574662,0.48587921,104260.0,104250.0,0.44686552]
[1750435574869,0.59026175,104260.0,104250.0,0.44686552]
[1750435575735,0.59985288,104260.0,104250.0,0.44686552]
[1750435576578,0.80127222,104260.0,104250.0,0.25794652]
[1750435576810,0.80127222,104260.0,104250.0,0.35400652]
[1750435576811,5.38844652,104260.0,104250.0,0.35400652]
[1750435577049,5.38844652,104260.0,104250.0,0.36359866]
[1750435577730,5.89940545,104260.0,104250.0,0.002]
[1750435577937,5.89940545,104260.0,104250.0,0.16212]
[1750435578383,5.92757674,104260.0,104250.0,0.16212]
[1750435579035,5.95049808,104260.0,104250.0,0.002]
[1750435579245,0.57283866,104250.0,104240.0,0.16012]
[1750435579452,1.23919764,104250.0,104240.0,0.16012]
[1750435579881,1.27219764,104250.0,104240.0,0.16012]
[1750435581167,1.27419764,104250.0,104240.0,0.16012]
[1750435581835,1.20979764,104250.0,104240.0,0.16012]
[1750435582921,0.22064326,104240.0,104230.0,0.26229314]
[1750435583131,0.79172331,104240.0,104230.0,0.42241314]
[1750435583349,0.79172331,104240.0,104230.0,0.43200675]
[1750435583558,0.60945136,104240.0,104230.0,0.46230611]
[1750435583769,0.80131628,104240.0,104230.0,0.46230611]
[1750435584185,0.80131628,104240.0,104230.0,0.46330611]
[1750435584388,0.60945136,104240.0,104230.0,0.46330611]
[1750435584830,0.80131628,104240.0,104230.0,0.44511898]
[1750435585042,0.80131628,104240.0,104230.0,0.45471259]
[1750435585520,0.80131628,104240.0,104230.0,0.4163376]
[1750435585735,0.80131628,104240.0,104230.0,0.41481925]
[1750435585949,0.80131628,104240.0,104230.0,0.22279944]
[1750435586157,0.80131628,104240.0,104230.0,0.38291944]
[1750435586588,1.69201123,104240.0,104230.0,0.00214]
[1750435586804,1.87767018,104240.0,104230.0,0.16226]
[1750435587015,1.84899016,104240.0,104230.0,0.16226]
[1750435587230,1.84899016,104240.0,104230.0,0.00214]
[1750435587457,1.84899016,104240.0,104230.0,0.00144443]
[1750435587458,6.94960064,104240.0,104230.0,0.00144443]
[1750435587734,7.20499049,104240.0,104230.0,0.00144443]
[1750435588163,6.93505979,104240.0,104230.0,0.00144443]
[1750435588386,6.01833534,104240.0,104230.0,0.37263581]
[1750435588597,6.23947987,104240.0,104230.0,0.40439156]
[1750435588814,6.23947987,104240.0,104230.0,0.41398545]
[1750435589020,6.22988718,104240.0,104230.0,0.41398545]
[1750435589440,6.2876715,104240.0,104230.0,0.16012]